[Event "Titled Tuesday Blitz March 28 Early 2023"]
[White "Floresvillar Gonzalez, Luis Migu"]
[Black "Forgacs, Attila Jr."]
[WhiteFideId "5100542"]
[BlackFideId "773654"]
[WhiteElo "2040"]
[BlackElo "2168"]
[Result "0-1"]
[Round "05"]
[TimeControl "180+2"]
[Date "2023.03.28"]
[WhiteClock "0:00:21"]
[BlackClock "0:00:06"]

1. d4 {[%clk 0:02:54]}  a6 {[%clk 0:03:00]} 2. Nf3 {[%clk 0:02:50]}  b5 {[%clk 0:03:00]} 3. e4 {[%clk 0:02:46]}  Bb7 {[%clk 0:02:59]} 4. Bd3 {[%clk 0:02:44]}  Nf6 {[%clk 0:02:58]} 5. e5 {[%clk 0:02:44]}  Nd5 {[%clk 0:02:55]} 6. c3 {[%clk 0:02:43]}  e6 {[%clk 0:02:53]} 7. Bg5 {[%clk 0:02:40]}  Be7 {[%clk 0:02:53]} 8. h4 {[%clk 0:02:39]}  h6 {[%clk 0:02:47]} 9. Bxe7 {[%clk 0:02:37]}  Qxe7 {[%clk 0:02:48]} 10. Nbd2 {[%clk 0:02:36]}  Nf4 {[%clk 0:02:44]} 11. Bf1 {[%clk 0:02:35]}  c5 {[%clk 0:02:38]} 12. g3 {[%clk 0:02:34]}  Nd5 {[%clk 0:02:31]} 13. Bg2 {[%clk 0:02:33]}  cxd4 {[%clk 0:02:21]} 14. cxd4 {[%clk 0:02:16]}  Nc6 {[%clk 0:02:19]} 15. O-O {[%clk 0:02:16]}  O-O {[%clk 0:02:17]} 16. Rc1 {[%clk 0:02:12]}  Rfc8 {[%clk 0:02:16]} 17. Qe2 {[%clk 0:02:06]}  Qb4 {[%clk 0:02:01]} 18. Ne4 {[%clk 0:01:53]}  Nxd4 {[%clk 0:01:49]} 19. Nxd4 {[%clk 0:01:52]}  Qxd4 {[%clk 0:01:50]} 20. Nd6 {[%clk 0:01:50]}  Rxc1 {[%clk 0:01:46]} 21. Rxc1 {[%clk 0:01:50]}  Bc6 {[%clk 0:01:44]} 22. Rd1 {[%clk 0:01:39]}  Qb4 {[%clk 0:01:29]} 23. a3 {[%clk 0:01:36]}  Qc5 {[%clk 0:01:23]} 24. Qf3 {[%clk 0:01:32]}  Nf6 {[%clk 0:01:12]} 25. Qf4 {[%clk 0:01:27]}  Qc2 {[%clk 0:00:50]} 26. Rd2 {[%clk 0:01:23]}  Qc1+ {[%clk 0:00:46]} 27. Kh2 {[%clk 0:01:22]}  Ng4+ {[%clk 0:00:36]} 28. Kh3 {[%clk 0:01:19]}  Bxg2+ {[%clk 0:00:31]} 29. Kxg2 {[%clk 0:01:19]}  Nxe5 {[%clk 0:00:25]} 30. Ne4 {[%clk 0:00:47]}  Nc4 {[%clk 0:00:17]} 31. Rxd7 {[%clk 0:00:46]}  Qxf4 {[%clk 0:00:17]} 32. gxf4 {[%clk 0:00:46]}  Nxb2 {[%clk 0:00:17]} 33. Nd6 {[%clk 0:00:45]}  Nc4 {[%clk 0:00:16]} 34. Nxf7 {[%clk 0:00:43]}  Nxa3 {[%clk 0:00:16]} 35. Ne5 {[%clk 0:00:42]}  Nc4 {[%clk 0:00:15]} 36. Ng6 {[%clk 0:00:40]}  a5 {[%clk 0:00:12]} 37. h5 {[%clk 0:00:40]}  a4 {[%clk 0:00:11]} 38. Ne7+ {[%clk 0:00:33]}  Kf7 {[%clk 0:00:09]} 39. Nf5+ {[%clk 0:00:24]}  Kf6 {[%clk 0:00:07]} 40. Nxg7 {[%clk 0:00:23]}  a3 {[%clk 0:00:05]} 41. f5 {[%clk 0:00:21]}  Rg8 {[%clk 0:00:04]} 42. fxe6 {[%clk 0:00:18]}  Rxg7+ {[%clk 0:00:04]} 43. Kf3 {[%clk 0:00:19]}  Rxd7 {[%clk 0:00:04]} 44. exd7 {[%clk 0:00:18]}  Ke7 {[%clk 0:00:04]} 45. Kf4 {[%clk 0:00:19]}  Kxd7 {[%clk 0:00:05]} 46. Kf5 {[%clk 0:00:19]}  a2 {[%clk 0:00:05]} 47. Kg6 {[%clk 0:00:20]}  a1=Q {[%clk 0:00:06]} 48. Kxh6 {[%clk 0:00:21]}  Qf6+ {[%clk 0:00:06]} 49. Kh7 {[%clk 0:00:20]}  Nd6 {[%clk 0:00:06]} 50. f4 {[%clk 0:00:20]}  Ne8 {[%clk 0:00:06]} 51. f5 {[%clk 0:00:21]}  Qg7# {[%clk 0:00:06]} 0-1


[Site "https://www.chess.com"]

[Event "Titled Tuesday Blitz March 28 Early 2023"]
[White "Gonzalez, Francisco Silva"]
[Black "Rodriguez Santiago, Jaime"]
[WhiteFideId "1512285"]
[BlackFideId "3100898"]
[WhiteElo "2074"]
[BlackElo "2025"]
[Result "0-1"]
[Round "05"]
[TimeControl "180+2"]
[Date "2023.03.28"]
[WhiteClock "0:00:40"]
[BlackClock "0:00:38"]

1. d4 {[%clk 0:02:55]}  Nf6 {[%clk 0:02:56]} 2. c4 {[%clk 0:02:54]}  e6 {[%clk 0:02:56]} 3. Nc3 {[%clk 0:02:54]}  d5 {[%clk 0:02:56]} 4. Bg5 {[%clk 0:02:51]}  c6 {[%clk 0:02:55]} 5. e3 {[%clk 0:02:49]}  Nbd7 {[%clk 0:02:55]} 6. Nf3 {[%clk 0:02:49]}  Qa5 {[%clk 0:02:54]} 7. Nd2 {[%clk 0:02:49]}  Bb4 {[%clk 0:02:51]} 8. Qc2 {[%clk 0:02:48]}  O-O {[%clk 0:02:46]} 9. Be2 {[%clk 0:02:46]}  dxc4 {[%clk 0:02:45]} 10. Bxf6 {[%clk 0:02:45]}  Nxf6 {[%clk 0:02:45]} 11. Nxc4 {[%clk 0:02:46]}  Qc7 {[%clk 0:02:44]} 12. a3 {[%clk 0:02:46]}  Be7 {[%clk 0:02:43]} 13. Rc1 {[%clk 0:02:45]}  Rd8 {[%clk 0:02:31]} 14. O-O {[%clk 0:02:42]}  Nd7 {[%clk 0:02:30]} 15. g3 {[%clk 0:02:40]}  e5 {[%clk 0:02:29]} 16. dxe5 {[%clk 0:02:38]}  Nxe5 {[%clk 0:02:28]} 17. Nxe5 {[%clk 0:02:38]}  Qxe5 {[%clk 0:02:28]} 18. Bf3 {[%clk 0:02:38]}  Be6 {[%clk 0:02:25]} 19. Rfd1 {[%clk 0:02:37]}  Bf6 {[%clk 0:02:22]} 20. Rxd8+ {[%clk 0:02:18]}  Rxd8 {[%clk 0:02:20]} 21. Rd1 {[%clk 0:02:19]}  Rxd1+ {[%clk 0:02:11]} 22. Qxd1 {[%clk 0:02:16]}  g6 {[%clk 0:02:07]} 23. h4 {[%clk 0:02:14]}  h5 {[%clk 0:02:05]} 24. a4 {[%clk 0:02:09]}  Qa5 {[%clk 0:01:58]} 25. Qd6 {[%clk 0:02:03]}  Kg7 {[%clk 0:01:51]} 26. b4 {[%clk 0:01:50]}  Qa6 {[%clk 0:01:48]} 27. Ne4 {[%clk 0:01:42]}  Qxa4 {[%clk 0:01:38]} 28. Nxf6 {[%clk 0:01:41]}  Qa1+ {[%clk 0:01:38]} 29. Kg2 {[%clk 0:01:40]}  Qxf6 {[%clk 0:01:38]} 30. Qb8 {[%clk 0:01:40]}  Bh3+ {[%clk 0:01:28]} 31. Kxh3 {[%clk 0:01:38]}  Qxf3 {[%clk 0:01:29]} 32. Qe5+ {[%clk 0:01:30]}  Kh7 {[%clk 0:01:27]} 33. Kh2 {[%clk 0:01:25]}  Qxf2+ {[%clk 0:01:26]} 34. Kh3 {[%clk 0:01:25]}  Qf1+ {[%clk 0:01:24]} 35. Kh2 {[%clk 0:01:24]}  Qe2+ {[%clk 0:01:17]} 36. Kh3 {[%clk 0:01:20]}  Qg4+ {[%clk 0:01:17]} 37. Kh2 {[%clk 0:01:20]}  Qe6 {[%clk 0:01:16]} 38. Qc5 {[%clk 0:01:20]}  b6 {[%clk 0:01:15]} 39. Qd4 {[%clk 0:01:20]}  Qd5 {[%clk 0:01:08]} 40. Qf6 {[%clk 0:01:19]}  c5 {[%clk 0:01:07]} 41. bxc5 {[%clk 0:01:17]}  bxc5 {[%clk 0:01:07]} 42. e4 {[%clk 0:01:17]}  Qe6 {[%clk 0:01:04]} 43. Qc3 {[%clk 0:01:13]}  c4 {[%clk 0:01:02]} 44. Qd4 {[%clk 0:01:12]}  a5 {[%clk 0:01:02]} 45. Qa7 {[%clk 0:01:04]}  a4 {[%clk 0:00:52]} 46. Kg1 {[%clk 0:00:56]}  c3 {[%clk 0:00:46]} 47. Qxa4 {[%clk 0:00:51]}  Qb6+ {[%clk 0:00:39]} 48. Kg2 {[%clk 0:00:46]}  Qb2+ {[%clk 0:00:39]} 49. Kf3 {[%clk 0:00:46]}  c2 {[%clk 0:00:39]} 50. Qd4 {[%clk 0:00:40]}  Qxd4 {[%clk 0:00:38]} 0-1


[Site "https://www.chess.com"]

[Event "Titled Tuesday Blitz March 28 Early 2023"]
[White "Napoli, Nicolo"]
[Black "Fernandez Garcia, Gumersindo"]
[WhiteFideId "813702"]
[BlackFideId "24516740"]
[WhiteElo "2308"]
[BlackElo "2093"]
[Result "0-1"]
[Round "05"]
[TimeControl "180+2"]
[Date "2023.03.28"]
[WhiteClock "0:00:05"]
[BlackClock "0:01:49"]

1. e4 {[%clk 0:02:56]}  c5 {[%clk 0:02:57]} 2. Nf3 {[%clk 0:02:55]}  e6 {[%clk 0:02:52]} 3. c3 {[%clk 0:02:55]}  d5 {[%clk 0:02:49]} 4. exd5 {[%clk 0:02:56]}  exd5 {[%clk 0:02:50]} 5. d4 {[%clk 0:02:56]}  Nc6 {[%clk 0:02:50]} 6. Bb5 {[%clk 0:02:52]}  Nf6 {[%clk 0:02:51]} 7. O-O {[%clk 0:02:51]}  Be7 {[%clk 0:02:51]} 8. Ne5 {[%clk 0:02:45]}  Qc7 {[%clk 0:02:48]} 9. Bf4 {[%clk 0:02:28]}  Qb6 {[%clk 0:02:45]} 10. Qa4 {[%clk 0:01:44]}  Bd7 {[%clk 0:02:39]} 11. Bxc6 {[%clk 0:01:16]}  Bxc6 {[%clk 0:02:36]} 12. Qc2 {[%clk 0:01:09]}  O-O {[%clk 0:02:33]} 13. Be3 {[%clk 0:01:03]}  c4 {[%clk 0:02:31]} 14. Nd2 {[%clk 0:00:49]}  Bd6 {[%clk 0:02:30]} 15. Ndf3 {[%clk 0:00:46]}  Rfe8 {[%clk 0:02:28]} 16. Rab1 {[%clk 0:00:41]}  Nd7 {[%clk 0:02:28]} 17. Qf5 {[%clk 0:00:26]}  Nxe5 {[%clk 0:02:23]} 18. dxe5 {[%clk 0:00:24]}  Bc5 {[%clk 0:02:17]} 19. Bd4 {[%clk 0:00:16]}  g6 {[%clk 0:02:07]} 20. Qf4 {[%clk 0:00:15]}  Re7 {[%clk 0:02:04]} 21. Rfe1 {[%clk 0:00:14]}  Rae8 {[%clk 0:02:04]} 22. Qf6 {[%clk 0:00:13]}  Ba4 {[%clk 0:01:58]} 23. Ng5 {[%clk 0:00:12]}  Qxf6 {[%clk 0:01:55]} 24. Bxc5 {[%clk 0:00:05]}  Rxe5 {[%clk 0:01:49]} 25. Rxe5 {[%clk 0:00:04]}  Qxe5 {[%clk 0:01:49]} 26. Bd4 {[%clk 0:00:05]}  Qe1+ {[%clk 0:01:49]} 0-1


[Site "https://www.chess.com"]

[Event "Titled Tuesday Blitz March 28 Early 2023"]
[White "Iljin, Timofey"]
[Black "Barria Santos, Jose Guilherme"]
[WhiteFideId "14110180"]
[BlackFideId "1939300"]
[WhiteElo "2397"]
[BlackElo "2301"]
[Result "1-0"]
[Round "05"]
[TimeControl "180+2"]
[Date "2023.03.28"]
[WhiteClock "0:02:00"]
[BlackClock "0:00:10"]

1. e4 {[%clk 0:02:56]}  c5 {[%clk 0:03:00]} 2. c3 {[%clk 0:02:46]}  Nf6 {[%clk 0:02:58]} 3. e5 {[%clk 0:02:44]}  Nd5 {[%clk 0:02:58]} 4. d4 {[%clk 0:02:45]}  cxd4 {[%clk 0:02:57]} 5. cxd4 {[%clk 0:02:46]}  Nc6 {[%clk 0:02:57]} 6. Nf3 {[%clk 0:02:47]}  d6 {[%clk 0:02:54]} 7. Bc4 {[%clk 0:02:47]}  Nb6 {[%clk 0:02:53]} 8. Bxf7+ {[%clk 0:02:47]}  Kxf7 {[%clk 0:02:43]} 9. e6+ {[%clk 0:02:48]}  Kxe6 {[%clk 0:02:06]} 10. Ng5+ {[%clk 0:02:47]}  Kd7 {[%clk 0:02:03]} 11. Nf7 {[%clk 0:02:47]}  Qe8 {[%clk 0:01:59]} 12. Nxh8 {[%clk 0:02:48]}  d5 {[%clk 0:01:34]} 13. O-O {[%clk 0:02:39]}  Kc7 {[%clk 0:01:31]} 14. Bf4+ {[%clk 0:02:36]}  Kd8 {[%clk 0:01:25]} 15. Nc3 {[%clk 0:02:27]}  a6 {[%clk 0:00:51]} 16. Qb3 {[%clk 0:02:22]}  Nc4 {[%clk 0:00:46]} 17. Nxd5 {[%clk 0:02:19]}  N4a5 {[%clk 0:00:36]} 18. Qb6+ {[%clk 0:02:17]}  Kd7 {[%clk 0:00:31]} 19. Qc7+ {[%clk 0:02:14]}  Ke6 {[%clk 0:00:31]} 20. Rfe1+ {[%clk 0:02:14]}  Kxd5 {[%clk 0:00:30]} 21. Re5+ {[%clk 0:02:14]}  Kc4 {[%clk 0:00:30]} 22. b3+ {[%clk 0:02:05]}  Kb4 {[%clk 0:00:18]} 23. Qb6+ {[%clk 0:02:05]}  Kc3 {[%clk 0:00:17]} 24. Rc1+ {[%clk 0:02:02]}  Kd3 {[%clk 0:00:17]} 25. Re3+ {[%clk 0:02:01]}  Kd2 {[%clk 0:00:17]} 26. Rec3+ {[%clk 0:02:01]}  Ke2 {[%clk 0:00:10]} 27. R1c2+ {[%clk 0:02:00]}  Kd1 {[%clk 0:00:10]} 28. Rd2+ {[%clk 0:02:00]}  Ke1 {[%clk 0:00:10]} 29. Rc1# {[%clk 0:02:00]} 1-0


[Site "https://www.chess.com"]

[Event "Titled Tuesday Blitz March 28 Early 2023"]
[White "Lopez, Nelson M, Ii"]
[Black "Bongo Akanga Ndjila, Barthelemy"]
[WhiteFideId "2027895"]
[BlackFideId "10609431"]
[WhiteElo "2397"]
[BlackElo "1768"]
[Result "0-1"]
[Round "05"]
[TimeControl "180+2"]
[Date "2023.03.28"]
[WhiteClock "0:00:01"]
[BlackClock "0:00:57"]

1. e4 {[%clk 0:03:00]}  e6 {[%clk 0:02:58]} 2. d4 {[%clk 0:03:00]}  d5 {[%clk 0:02:58]} 3. Nc3 {[%clk 0:03:00]}  Nf6 {[%clk 0:02:57]} 4. Bg5 {[%clk 0:02:54]}  Be7 {[%clk 0:02:56]} 5. Bxf6 {[%clk 0:02:47]}  Bxf6 {[%clk 0:02:55]} 6. Nf3 {[%clk 0:02:48]}  O-O {[%clk 0:02:53]} 7. Bd3 {[%clk 0:02:45]}  g6 {[%clk 0:02:52]} 8. h4 {[%clk 0:02:26]}  c5 {[%clk 0:02:42]} 9. dxc5 {[%clk 0:02:20]}  d4 {[%clk 0:02:41]} 10. e5 {[%clk 0:01:56]}  Bg7 {[%clk 0:02:31]} 11. Ne4 {[%clk 0:01:54]}  Nc6 {[%clk 0:02:28]} 12. h5 {[%clk 0:01:43]}  Nxe5 {[%clk 0:02:27]} 13. hxg6 {[%clk 0:01:40]}  fxg6 {[%clk 0:02:25]} 14. Nxe5 {[%clk 0:01:13]}  Bxe5 {[%clk 0:02:21]} 15. Qg4 {[%clk 0:01:14]}  Qe7 {[%clk 0:02:11]} 16. O-O-O {[%clk 0:01:09]}  Bg7 {[%clk 0:02:05]} 17. Ng5 {[%clk 0:00:52]}  e5 {[%clk 0:02:05]} 18. Qg3 {[%clk 0:00:30]}  h6 {[%clk 0:01:57]} 19. Ne4 {[%clk 0:00:26]}  g5 {[%clk 0:01:57]} 20. Kb1 {[%clk 0:00:23]}  Be6 {[%clk 0:01:54]} 21. Rh2 {[%clk 0:00:13]}  b6 {[%clk 0:01:53]} 22. Rdh1 {[%clk 0:00:12]}  bxc5 {[%clk 0:01:52]} 23. Nd2 {[%clk 0:00:07]}  c4 {[%clk 0:01:38]} 24. Nxc4 {[%clk 0:00:07]}  Rab8 {[%clk 0:01:35]} 25. b3 {[%clk 0:00:07]}  Bd5 {[%clk 0:01:27]} 26. Rxh6 {[%clk 0:00:07]}  e4 {[%clk 0:01:24]} 27. Be2 {[%clk 0:00:03]}  d3 {[%clk 0:01:24]} 28. cxd3 {[%clk 0:00:03]}  exd3 {[%clk 0:01:17]} 29. Bxd3 {[%clk 0:00:04]}  Be4 {[%clk 0:01:15]} 30. Bxe4 {[%clk 0:00:03]}  Qxe4+ {[%clk 0:01:14]} 31. Kc1 {[%clk 0:00:01]}  Qf4+ {[%clk 0:00:57]} 32. Qxf4 {[%clk 0:00:01]}  Rxf4 {[%clk 0:00:57]} 0-1


[Site "https://www.chess.com"]

[Event "Titled Tuesday Blitz March 28 Early 2023"]
[White "Corredor Castellanos, Camilo"]
[Black "Winkels, Marcel"]
[WhiteFideId "4425871"]
[BlackFideId "1003887"]
[WhiteElo "1994"]
[BlackElo "1900"]
[Result "0-1"]
[Round "05"]
[TimeControl "180+2"]
[Date "2023.03.28"]
[WhiteClock "0:01:33"]
[BlackClock "0:01:24"]

1. e4 {[%clk 0:03:00]}  c5 {[%clk 0:02:59]} 2. Nf3 {[%clk 0:03:00]}  d6 {[%clk 0:02:58]} 3. d4 {[%clk 0:03:00]}  cxd4 {[%clk 0:02:59]} 4. Nxd4 {[%clk 0:03:01]}  Nf6 {[%clk 0:02:59]} 5. Nc3 {[%clk 0:03:01]}  a6 {[%clk 0:03:00]} 6. h3 {[%clk 0:03:00]}  e5 {[%clk 0:02:58]} 7. Nf3 {[%clk 0:02:59]}  Be7 {[%clk 0:02:56]} 8. Be3 {[%clk 0:02:53]}  Be6 {[%clk 0:02:55]} 9. Ng5 {[%clk 0:02:47]}  O-O {[%clk 0:02:45]} 10. Nxe6 {[%clk 0:02:42]}  fxe6 {[%clk 0:02:44]} 11. Bc4 {[%clk 0:02:43]}  Qd7 {[%clk 0:02:40]} 12. O-O {[%clk 0:02:44]}  b5 {[%clk 0:02:37]} 13. Bb3 {[%clk 0:02:36]}  Nc6 {[%clk 0:02:27]} 14. a3 {[%clk 0:02:35]}  Na5 {[%clk 0:02:17]} 15. Qe2 {[%clk 0:02:33]}  Nxb3 {[%clk 0:02:15]} 16. cxb3 {[%clk 0:02:34]}  d5 {[%clk 0:02:10]} 17. f4 {[%clk 0:02:16]}  exf4 {[%clk 0:01:54]} 18. Bxf4 {[%clk 0:02:15]}  d4 {[%clk 0:01:40]} 19. Rad1 {[%clk 0:02:15]}  Rad8 {[%clk 0:01:38]} 20. Be5 {[%clk 0:02:11]}  Qa7 {[%clk 0:01:33]} 21. Nxb5 {[%clk 0:01:36]}  d3+ {[%clk 0:01:27]} 22. Qf2 {[%clk 0:01:32]}  Qxf2+ {[%clk 0:01:24]} 23. Rxf2 {[%clk 0:01:33]} 0-1


[Site "https://www.chess.com"]

[Event "Titled Tuesday Blitz March 28 Early 2023"]
[White "Chan, Kim Yew"]
[Black "Avazkhonov, Alikhon"]
[WhiteFideId "5717981"]
[BlackFideId "14208504"]
[WhiteElo "2206"]
[BlackElo "1739"]
[Result "1-0"]
[Round "05"]
[TimeControl "180+2"]
[Date "2023.03.28"]
[WhiteClock "0:00:07"]
[BlackClock "0:00:01"]

1. c4 {[%clk 0:02:58]}  e5 {[%clk 0:02:59]} 2. Nc3 {[%clk 0:02:57]}  d6 {[%clk 0:02:59]} 3. Nf3 {[%clk 0:02:57]}  f5 {[%clk 0:02:59]} 4. d4 {[%clk 0:02:55]}  e4 {[%clk 0:02:52]} 5. Ng5 {[%clk 0:02:40]}  Be7 {[%clk 0:02:38]} 6. h4 {[%clk 0:02:40]}  h6 {[%clk 0:02:33]} 7. Nh3 {[%clk 0:02:39]}  Bxh4 {[%clk 0:02:23]} 8. Nf4 {[%clk 0:02:39]}  Bf6 {[%clk 0:02:22]} 9. Ng6 {[%clk 0:02:27]}  Rh7 {[%clk 0:02:22]} 10. e3 {[%clk 0:02:14]}  Be6 {[%clk 0:02:21]} 11. Be2 {[%clk 0:01:57]}  Bf7 {[%clk 0:02:12]} 12. Bh5 {[%clk 0:01:58]}  Ne7 {[%clk 0:02:09]} 13. Nxe7 {[%clk 0:01:54]}  Qxe7 {[%clk 0:02:10]} 14. Nd5 {[%clk 0:01:55]}  Qd8 {[%clk 0:02:01]} 15. Bxf7+ {[%clk 0:01:27]}  Kxf7 {[%clk 0:01:51]} 16. Nf4 {[%clk 0:01:27]}  g6 {[%clk 0:01:48]} 17. g4 {[%clk 0:01:18]}  Qd7 {[%clk 0:01:44]} 18. gxf5 {[%clk 0:01:08]}  Qxf5 {[%clk 0:01:45]} 19. Qb3 {[%clk 0:01:08]}  b6 {[%clk 0:01:16]} 20. c5+ {[%clk 0:01:05]}  Ke7 {[%clk 0:01:12]} 21. cxd6+ {[%clk 0:00:39]}  cxd6 {[%clk 0:01:12]} 22. Nd5+ {[%clk 0:00:39]}  Kd7 {[%clk 0:01:05]} 23. Qa4+ {[%clk 0:00:19]}  Kc8 {[%clk 0:00:17]} 24. Nxb6+ {[%clk 0:00:16]}  axb6 {[%clk 0:00:18]} 25. Qxa8 {[%clk 0:00:17]}  Rf7 {[%clk 0:00:15]} 26. Bd2 {[%clk 0:00:13]}  Bxd4 {[%clk 0:00:10]} 27. O-O-O {[%clk 0:00:08]}  Bg7 {[%clk 0:00:04]} 28. Kb1 {[%clk 0:00:07]}  Rc7 {[%clk 0:00:04]} 29. Rc1 {[%clk 0:00:06]}  Qb5 {[%clk 0:00:04]} 30. Rxc7+ {[%clk 0:00:07]}  Kxc7 {[%clk 0:00:04]} 31. Rc1+ {[%clk 0:00:07]}  Nc6 {[%clk 0:00:02]} 32. Qa7+ {[%clk 0:00:08]}  Kd8 {[%clk 0:00:02]} 33. Qxg7 {[%clk 0:00:09]}  Qd3+ {[%clk 0:00:02]} 34. Rc2 {[%clk 0:00:08]}  Nb4 {[%clk 0:00:01]} 35. Bxb4 {[%clk 0:00:07]} 1-0


[Site "https://www.chess.com"]

[Event "Titled Tuesday Blitz March 28 Early 2023"]
[White "Reprintsev, Alexander"]
[Black "Benevides Demasi, Joao Otavio"]
[WhiteFideId "14100541"]
[BlackFideId "30916224"]
[WhiteElo "2229"]
[BlackElo "2113"]
[Result "1-0"]
[Round "05"]
[TimeControl "180+2"]
[Date "2023.03.28"]
[WhiteClock "0:00:16"]
[BlackClock "0:00:12"]

1. e4 {[%clk 0:02:52]}  c5 {[%clk 0:02:59]} 2. b3 {[%clk 0:02:52]}  Nc6 {[%clk 0:02:59]} 3. Bb2 {[%clk 0:02:52]}  e5 {[%clk 0:02:59]} 4. f4 {[%clk 0:02:51]}  d6 {[%clk 0:02:59]} 5. Qf3 {[%clk 0:02:50]}  Nf6 {[%clk 0:02:59]} 6. Bb5 {[%clk 0:02:46]}  Bd7 {[%clk 0:02:51]} 7. Ne2 {[%clk 0:02:45]}  Nd4 {[%clk 0:02:49]} 8. Nxd4 {[%clk 0:02:44]}  cxd4 {[%clk 0:02:48]} 9. Bxd7+ {[%clk 0:02:44]}  Qxd7 {[%clk 0:02:48]} 10. c3 {[%clk 0:02:44]}  dxc3 {[%clk 0:02:37]} 11. Nxc3 {[%clk 0:02:44]}  Be7 {[%clk 0:02:31]} 12. O-O-O {[%clk 0:02:26]}  O-O {[%clk 0:02:23]} 13. d4 {[%clk 0:02:26]}  exd4 {[%clk 0:02:19]} 14. Rxd4 {[%clk 0:02:26]}  Qg4 {[%clk 0:02:19]} 15. Nd5 {[%clk 0:02:21]}  Qd7 {[%clk 0:02:07]} 16. Nxe7+ {[%clk 0:02:15]}  Qxe7 {[%clk 0:02:04]} 17. Rhd1 {[%clk 0:02:14]}  Rac8+ {[%clk 0:02:03]} 18. Kb1 {[%clk 0:02:14]}  Rfd8 {[%clk 0:02:02]} 19. g4 {[%clk 0:02:13]}  Re8 {[%clk 0:01:41]} 20. Re1 {[%clk 0:01:57]}  Qc7 {[%clk 0:01:21]} 21. g5 {[%clk 0:01:49]}  Qc2+ {[%clk 0:01:12]} 22. Ka1 {[%clk 0:01:49]}  Nd7 {[%clk 0:00:56]} 23. Re2 {[%clk 0:01:35]}  Qc6 {[%clk 0:00:47]} 24. Red2 {[%clk 0:01:27]}  Nc5 {[%clk 0:00:42]} 25. Rxd6 {[%clk 0:01:01]}  Qxe4 {[%clk 0:00:39]} 26. Qc3 {[%clk 0:01:01]}  Qe1+ {[%clk 0:00:30]} 27. Rd1 {[%clk 0:00:49]}  Qxc3 {[%clk 0:00:28]} 28. Bxc3 {[%clk 0:00:49]}  Ne4 {[%clk 0:00:29]} 29. Be5 {[%clk 0:00:46]}  Nxd6 {[%clk 0:00:28]} 30. Rxd6 {[%clk 0:00:46]}  Rc6 {[%clk 0:00:23]} 31. Rd7 {[%clk 0:00:44]}  Rb6 {[%clk 0:00:23]} 32. Kb2 {[%clk 0:00:30]}  f6 {[%clk 0:00:23]} 33. gxf6 {[%clk 0:00:28]}  gxf6 {[%clk 0:00:23]} 34. Bd4 {[%clk 0:00:29]}  Ra6 {[%clk 0:00:20]} 35. a4 {[%clk 0:00:28]}  Re2+ {[%clk 0:00:19]} 36. Ka3 {[%clk 0:00:29]}  Rxh2 {[%clk 0:00:19]} 37. Rxb7 {[%clk 0:00:29]}  Rh3 {[%clk 0:00:19]} 38. Bxa7 {[%clk 0:00:27]}  Rf3 {[%clk 0:00:18]} 39. Bb8 {[%clk 0:00:26]}  h5 {[%clk 0:00:16]} 40. Rb5 {[%clk 0:00:24]}  h4 {[%clk 0:00:16]} 41. Rh5 {[%clk 0:00:24]}  h3 {[%clk 0:00:16]} 42. Bc7 {[%clk 0:00:20]}  Rc6 {[%clk 0:00:15]} 43. Ba5 {[%clk 0:00:20]}  Ra6 {[%clk 0:00:14]} 44. Bb4 {[%clk 0:00:20]}  Rb6 {[%clk 0:00:14]} 45. a5 {[%clk 0:00:20]}  Rb5 {[%clk 0:00:14]} 46. Rxb5 {[%clk 0:00:19]}  h2 {[%clk 0:00:13]} 47. Rh5 {[%clk 0:00:19]}  Rf2 {[%clk 0:00:13]} 48. Bc5 {[%clk 0:00:18]}  Rg2 {[%clk 0:00:12]} 49. a6 {[%clk 0:00:17]}  Kf7 {[%clk 0:00:12]} 50. a7 {[%clk 0:00:17]}  Kg6 {[%clk 0:00:13]} 51. Rh8 {[%clk 0:00:16]}  Kg7 {[%clk 0:00:12]} 52. a8=Q {[%clk 0:00:16]} 1-0


[Site "https://www.chess.com"]